[Event "5th EKA IIFL Investment 2019"]
[Site "Mumbai"]
[Date "2020.01.04"]
[Round "6.47"]
[White "Mohite, Ranveer"]
[Black "Manish Kumar (2006)"]
[Result "1/2-1/2"]
[ECO "C72"]
[WhiteElo "2281"]
[BlackElo "2168"]
[Annotator "ChessBase"]
[PlyCount "85"]
[EventDate "2019.12.30"]
[EventType "swiss"]
[EventCountry "IND"]
[SourceTitle "playchess.com"]
[Source "ChessBase"]
[SourceQuality "1"]
[TimeControl "40/5400+30:1800+30"]

1. e4 e5 2. Nf3 Nc6 3. Bb5 a6 4. Ba4 d6 5. O-O Bd7 6. d4 b5 7. Bb3 Nxd4 8. Nxd4 exd4 9. c3 dxc3 10. Qh5 g6 11. Qd5 Be6 12. Qc6+ Bd7 13. Qd5 Be6 14. Qc6+ Bd7 15. Qxc3 Qf6 16. Qxc7 Rc8 17. Qb7 Bg7 18. Nc3 Ne7 19. Nd5 Nxd5 20. exd5 Qe7 21. Bf4 O-O 22. Qxa6 Bxb2 23. Qxd6 Qxd6 24. Bxd6 Bxa1 25. Bxf8 Kxf8 26. Rxa1 Ke7 27. f3 Kd6 28. Kf2 Rc3 29. Re1 g5 30. Re3 Rc5 31. Ke2 Rc1 32. Kf2 Rh1 33. h3 h5 34. f4 g4 35. h4 Rxh4 36. Re1 g3+ 37. Kxg3 Rg4+ 38. Kf3 h4 39. Re3 Rg3+ 40. Kf2 Rg4 41. Kf3 Rg3+ 42. Kf2 Rg4 43. Kf3 {Ke5 Ke4+} 1/2-1/2

[Event "5th EKA IIFL Investment 2019"]
[Site "Mumbai"]
[Date "2020.01.04"]
[Round "6.48"]
[White "Chitlange Sakshi"]
[Black "Deshpande, Aniruddha"]
[Result "1/2-1/2"]
[ECO "E73"]
[WhiteElo "2163"]
[BlackElo "2275"]
[Annotator "ChessBase"]
[PlyCount "112"]
[EventDate "2019.12.30"]
[EventType "swiss"]
[EventCountry "IND"]
[SourceTitle "playchess.com"]
[Source "ChessBase"]
[SourceQuality "1"]
[TimeControl "40/5400+30:1800+30"]

1. d4 Nf6 2. c4 g6 3. Nc3 Bg7 4. e4 d6 5. Be2 O-O 6. Bg5 Na6 7. Nf3 e5 8. O-O h6 9. Be3 Bg4 10. Re1 Re8 11. d5 Nc5 12. Nd2 Bxe2 13. Qxe2 a5 14. b3 Nh5 15. g3 Qd7 16. a3 Nf4 17. Qf3 Nh3+ 18. Kg2 Ng5 19. Bxg5 hxg5 20. b4 g4 21. Qe3 Na4 22. Nb3 axb4 23. axb4 f5 24. Nxa4 Rxa4 25. Rxa4 Qxa4 26. Qc3 Rf8 27. b5 Qa7 28. Ra1 Qb8 29. f3 Qd8 30. fxg4 fxg4 31. Rf1 Rxf1 32. Kxf1 b6 33. Qe3 Qa8 34. Qe2 Qa4 35. Qc2 Bh6 36. Ke2 Qb4 37. Qd3 Qa4 38. Qc2 Qa3 39. Kd3 Bg5 40. Ke2 Kg7 41. Kd3 Bh6 42. Ke2 Qb4 43. Qd3 Qa4 44. Qc2 Qa3 45. Kf2 Qa8 46. Qe2 Kh7 47. Kg2 Qa4 48. Qc2 Be3 49. Kf1 Qa3 50. Ke2 Bg5 51. Kd3 Kg7 52. Ke2 Bh6 53. Kd3 Qb4 54. Ke2 Bg5 55. Qd3 Qa3 56. Qc2 Qb4 1/2-1/2

[Event "5th EKA IIFL Investment 2019"]
[Site "Mumbai"]
[Date "2020.01.04"]
[Round "6.49"]
[White "Aaryan, Varshney"]
[Black "Kulkarni, Vinayak"]
[Result "1/2-1/2"]
[ECO "D34"]
[WhiteElo "2269"]
[BlackElo "2167"]
[Annotator "NA"]
[PlyCount "80"]
[EventDate "2019.12.30"]
[EventType "swiss"]
[EventCountry "IND"]
[SourceTitle "playchess.com"]
[Source "ChessBase"]
[SourceQuality "1"]
[TimeControl "40/5400+30:1800+30"]

1. d4 {[%emt 0:00:00]} d5 {[%emt 0:00:00]} 2. c4 {[%emt 0:00:00]} e6 {[%emt 0:00:00]} 3. Nc3 {[%emt 0:00:00]} c5 {[%emt 0:00:08]} 4. cxd5 {[%emt 0:00:06]} exd5 {[%emt 0:00:09]} 5. Nf3 {[%emt 0:00:27]} Nc6 {[%emt 0:00:13]} 6. g3 {[%emt 0:00:30]} Nf6 {[%emt 0:00:14]} 7. Bg2 {[%emt 0:00:09]} Be7 {[%emt 0:00:11]} 8. O-O {[%emt 0:00:50]} O-O {[%emt 0:00:12]} 9. Bg5 {[%emt 0:01:47]} c4 {[%emt 0:00:15]} 10. Ne5 {[%emt 0:00:11]} Be6 {[%emt 0:00:43]} 11. Nxc6 {[%emt 0:00:16]} bxc6 {[%emt 0:00:08]} 12. b3 {[%emt 0:00:18]} h6 {[%emt 0:01:11]} 13. Bxf6 {[%emt 0:04:14]} Bxf6 {[%emt 0:00:08]} 14. e3 {[%emt 0:00:58]} Qa5 {[%emt 0:11:33]} 15. Na4 {[%emt 0:06:14]} Be7 {[%emt 0:12:13]} 16. Qc2 {[%emt 0:09:21]} Rac8 {[%emt 0:10:30]} 17. Rfd1 {[%emt 0:08:27]} Rfd8 {[%emt 0:03:46]} 18. Rab1 {[%emt 0:08:31]} g6 {[%emt 0:10:41]} 19. e4 {[%emt 0:09:22]} c5 {[%emt 0:11:58]} 20. dxc5 {[%emt 0:04:57]} d4 {[%emt 0:02:09]} 21. Bf1 {[%emt 0:06:16]} d3 {[%emt 0:04:35]} 22. Qc3 {[%emt 0:02:57]} Qxc3 {[%emt 0:00:56]} 23. Nxc3 {[%emt 0:00:02]} Rxc5 {[%emt 0:14:12]} 24. bxc4 {[%emt 0:01:32]} Bxc4 {[%emt 0:01:34]} 25. Nd5 {[%emt 0:02:10]} Bxd5 {[%emt 0:00:57]} 26. exd5 {[%emt 0:00:11]} Rcxd5 {[%emt 0:00:18]} 27. Rd2 {[%emt 0:00:14]} Bg5 {[%emt 0:08:41]} 28. f4 {[%emt 0:00:18]} Be7 {[%emt 0:00:13]} 29. Rb3 {[%emt 0:00:10]} Rc8 {[%emt 0:01:22]} 30. Rbxd3 {[%emt 0:00:45]} Rxd3 {[%emt 0:01:09]} 31. Bxd3 {[%emt 0:00:13]} Rc3 {[%emt 0:00:47]} 32. Be4 {[%emt 0:00:29]} f5 {[%emt 0:01:49]} 33. Bd5+ {[%emt 0:02:07]} Kg7 {[%emt 0:00:05]} 34. Bb3 {[%emt 0:00:04]} Kf6 {[%emt 0:00:14]} 35. Bd5 {[%emt 0:00:21]} Kg7 {[%emt 0:00:06]} 36. Bb3 {[%emt 0:00:05]} Kf6 {[%emt 0:00:05]} 37. Bd5 {[%emt 0:00:05]} Kg7 {[%emt 0:00:04]} 38. Bb3 {[%emt 0:00:05]} Kf6 {[%emt 0:00:05]} 39. Bd5 {[%emt 0:00:11]} Kg7 {[%emt 0:00:05]} 40. Bb3 {[%emt 0:00:00]} Kf6 {[%emt 0:00:00]} 1/2-1/2

[Event "5th EKA IIFL Investment 2019"]
[Site "Mumbai"]
[Date "2020.01.04"]
[Round "6.50"]
[White "Saurabh Anand"]
[Black "Safranska, Anda"]
[Result "1-0"]
[ECO "B04"]
[WhiteElo "2269"]
[BlackElo "2112"]
[Annotator "NA"]
[PlyCount "65"]
[EventDate "2019.12.30"]
[EventType "swiss"]
[EventCountry "IND"]
[SourceTitle "playchess.com"]
[Source "ChessBase"]
[SourceQuality "1"]
[TimeControl "40/5400+30:1800+30"]

1. e4 {[%emt 0:00:00]} Nf6 {[%emt 0:00:00]} 2. e5 {[%emt 0:00:00]} Nd5 {[%emt 0:00:00]} 3. d4 {[%emt 0:00:01]} d6 {[%emt 0:00:00]} 4. Nf3 {[%emt 0:00:07]} g6 {[%emt 0:00:19]} 5. c4 {[%emt 0:02:00]} Nb6 {[%emt 0:00:05]} 6. Nc3 {[%emt 0:00:27]} Bg7 {[%emt 0:00:40]} 7. Bf4 {[%emt 0:02:13]} O-O {[%emt 0:20:57]} 8. Be2 {[%emt 0:03:22]} Na6 {[%emt 0:06:29]} 9. O-O {[%emt 0:08:42]} c6 {[%emt 0:04:57]} 10. h3 {[%emt 0:05:18]} Nc7 {[%emt 0:05:07]} 11. Qc1 {[%emt 0:05:41]} d5 {[%emt 0:06:40]} 12. c5 {[%emt 0:01:21]} Nd7 {[%emt 0:00:04]} 13. Bh6 {[%emt 0:01:09]} f6 {[%emt 0:00:32]} 14. b4 {[%emt 0:03:07]} fxe5 {[%emt 0:02:32]} 15. Bxg7 {[%emt 0:02:09]} Kxg7 {[%emt 0:00:08]} 16. dxe5 {[%emt 0:00:09]} Ne6 {[%emt 0:00:58]} 17. Re1 {[%emt 0:05:19]} Rf7 {[%emt 0:04:47]} 18. Nd1 {[%emt 0:01:06]} Ndf8 {[%emt 0:01:10]} 19. Ne3 {[%emt 0:01:38]} h6 {[%emt 0:05:06]} 20. g3 {[%emt 0:02:52]} Nc7 {[%emt 0:00:56]} 21. Kg2 {[%emt 0:03:12]} Be6 {[%emt 0:12:40]} 22. Ng4 {[%emt 0:01:31]} Bxg4 {[%emt 0:04:03]} 23. hxg4 {[%emt 0:00:10]} e6 {[%emt 0:03:48]} 24. Rh1 {[%emt 0:02:03]} g5 {[%emt 0:00:08]} 25. Rh5 {[%emt 0:00:43]} Nd7 {[%emt 0:06:06]} 26. Qh1 {[%emt 0:01:21]} Rxf3 {[%emt 0:01:34]} 27. Rxh6 {[%emt 0:03:27]} Qh8 {[%emt 0:07:20]} 28. Rxh8 {[%emt 0:00:20]} Rxh8 {[%emt 0:00:33]} 29. Qc1 {[%emt 0:00:16]} Rff8 {[%emt 0:00:02]} 30. Qxg5+ {[%emt 0:00:47]} Kf7 {[%emt 0:00:05]} 31. Rh1 {[%emt 0:00:16]} Rfg8 {[%emt 0:00:32]} 32. Qf4+ {[%emt 0:00:09]} Kg7 {[%emt 0:00:37]} 33. Rh5 {[%emt 0:01:23]} 1-0

[Event "5th EKA IIFL Investment 2019"]
[Site "Mumbai"]
[Date "2020.01.04"]
[Round "6.51"]
[White "Luong, Phuong Hanh"]
[Black "Soham Datar"]
[Result "1-0"]
[ECO "D02"]
[WhiteElo "2256"]
[BlackElo "2145"]
[Annotator "ChessBase"]
[PlyCount "79"]
[EventDate "2019.12.30"]
[EventType "swiss"]
[EventCountry "IND"]
[SourceTitle "playchess.com"]
[Source "ChessBase"]
[SourceQuality "1"]
[TimeControl "40/5400+30:1800+30"]

1. d4 {[%emt 0:07:25]} Nf6 {[%emt 0:00:00]} 2. Nf3 {[%emt 0:00:08]} d5 {[%emt 0:00:00]} 3. Bf4 {[%emt 0:00:11]} c5 {[%emt 0:00:18]} 4. e3 {[%emt 0:00:06]} Nc6 {[%emt 0:00:07]} 5. c3 {[%emt 0:00:12]} e6 {[%emt 0:00:08]} 6. Nbd2 {[%emt 0:00:07]} Bd6 {[%emt 0:00:08]} 7. Bg3 {[%emt 0:00:06]} O-O {[%emt 0:00:44]} 8. Bd3 {[%emt 0:00:06]} b6 {[%emt 0:00:10]} 9. O-O {[%emt 0:00:19]} Bb7 {[%emt 0:00:04]} 10. Re1 {[%emt 0:01:00]} Ne7 {[%emt 0:06:39]} 11. Bxd6 {[%emt 0:07:33]} Qxd6 {[%emt 0:00:04]} 12. Ne5 {[%emt 0:00:29]} a6 {[%emt 0:05:31]} 13. f4 {[%emt 0:02:03]} Qc7 {[%emt 0:06:21]} 14. Qf3 {[%emt 0:02:19]} Nf5 {[%emt 0:00:23]} 15. Qh3 {[%emt 0:14:28]} Ne4 {[%emt 0:03:18]} 16. Rad1 {[%emt 0:05:23]} f6 {[%emt 0:01:58]} 17. Nef3 {[%emt 0:00:29]} c4 {[%emt 0:05:36]} 18. Bc2 {[%emt 0:02:39]} b5 {[%emt 0:00:16]} 19. Nxe4 {[%emt 0:00:22]} dxe4 {[%emt 0:00:07]} 20. Nd2 {[%emt 0:00:07]} Nd6 {[%emt 0:03:03]} 21. Nxe4 {[%emt 0:01:35]} f5 {[%emt 0:08:30]} 22. Ng5 {[%emt 0:00:24]} h6 {[%emt 0:00:44]} 23. Nxe6 {[%emt 0:00:14]} Qe7 {[%emt 0:00:14]} 24. Nxf8 {[%emt 0:00:11]} Rxf8 {[%emt 0:00:05]} 25. d5 {[%emt 0:00:46]} a5 {[%emt 0:00:48]} 26. e4 {[%emt 0:00:57]} fxe4 {[%emt 0:03:33]} 27. Qe6+ {[%emt 0:00:43]} Rf7 {[%emt 0:01:18]} 28. Bxe4 {[%emt 0:00:43]} Nxe4 {[%emt 0:03:32]} 29. Rxe4 {[%emt 0:00:51]} Qc5+ {[%emt 0:00:21]} 30. Kh1 {[%emt 0:00:20]} Qf2 {[%emt 0:00:24]} 31. Qe8+ {[%emt 0:01:09]} Rf8 {[%emt 0:00:08]} 32. Qxb5 {[%emt 0:00:18]} Bc8 {[%emt 0:01:27]} 33. Qxc4 {[%emt 0:02:11]} Bg4 {[%emt 0:01:16]} 34. Rf1 {[%emt 0:01:35]} Qxb2 {[%emt 0:00:13]} 35. h3 {[%emt 0:00:11]} Bf5 36. Re7 {[%emt 0:00:08]} Qd2 {[%emt 0:01:37]} 37. Qd4 {[%emt 0:00:57]} Qxd4 {[%emt 0:00:22]} 38. cxd4 {[%emt 0:00:01]} Rd8 {[%emt 0:00:01]} 39. Rc1 {[%emt 0:00:39]} Rxd5 {[%emt 0:01:23]} 40. Re5 {[%emt 0:00:00]} 1-0

[Event "5th EKA IIFL Investment 2019"]
[Site "Mumbai"]
[Date "2020.01.04"]
[Round "6.52"]
[White "Jay Kundaliya"]
[Black "Souhardo Basak"]
[Result "0-1"]
[ECO "E06"]
[WhiteElo "2088"]
[BlackElo "2254"]
[Annotator "ChessBase"]
[PlyCount "93"]
[EventDate "2019.12.30"]
[EventType "swiss"]
[EventCountry "IND"]
[SourceTitle "playchess.com"]
[Source "ChessBase"]
[SourceQuality "1"]
[TimeControl "40/5400+30:1800+30"]

1. d4 {[%emt 0:00:29]} Nf6 {[%emt 0:00:00]} 2. c4 {[%emt 0:00:05]} e6 {[%emt 0:00:00]} 3. g3 {[%emt 0:00:06]} d5 {[%emt 0:00:12]} 4. Bg2 {[%emt 0:02:39]} Be7 {[%emt 0:00:07]} 5. Nf3 {[%emt 0:00:39]} O-O {[%emt 0:00:07]} 6. O-O {[%emt 0:01:02]} dxc4 {[%emt 0:00:06]} 7. Qc2 {[%emt 0:03:10]} a6 {[%emt 0:00:05]} 8. a4 {[%emt 0:00:11]} Bd7 {[%emt 0:00:03]} 9. Qxc4 {[%emt 0:09:20]} Bc6 {[%emt 0:00:06]} 10. Bf4 {[%emt 0:01:24]} Bd6 {[%emt 0:00:39]} 11. Nc3 {[%emt 0:04:51]} Bxf4 {[%emt 0:00:43]} 12. gxf4 {[%emt 0:00:05]} a5 {[%emt 0:02:08]} 13. Rfe1 {[%emt 0:10:35]} Qd6 {[%emt 0:28:21]} 14. e3 {[%emt 0:04:56]} Bxf3 {[%emt 0:04:02]} 15. Bxf3 {[%emt 0:00:12]} c6 {[%emt 0:00:03]} 16. Kh1 {[%emt 0:11:07]} Ra6 {[%emt 0:05:55]} 17. Qf1 {[%emt 0:11:02]} Rb6 {[%emt 0:05:14]} 18. Rab1 {[%emt 0:00:34]} Na6 {[%emt 0:17:04]} 19. Qh3 {[%emt 0:07:09]} Nb4 {[%emt 0:04:40]} 20. Rg1 {[%emt 0:01:25]} g6 {[%emt 0:01:15]} 21. Qh4 {[%emt 0:02:02]} Qd8 {[%emt 0:03:42]} 22. Rgd1 {[%emt 0:16:13]} Nfd5 {[%emt 0:00:42]} 23. Qxd8 {[%emt 0:01:14]} Rxd8 {[%emt 0:00:02]} 24. Ne4 {[%emt 0:01:13]} Na6 {[%emt 0:02:26]} 25. Rdc1 {[%emt 0:02:12]} Rb4 {[%emt 0:01:35]} 26. b3 {[%emt 0:01:25]} Kf8 {[%emt 0:03:31]} 27. Be2 {[%emt 0:01:20]} Ra8 {[%emt 0:00:55]} 28. Nd6 {[%emt 0:01:25]} Ke7 {[%emt 0:01:25]} 29. Nc4 {[%emt 0:00:17]} Nb8 {[%emt 0:02:56]} 30. Ne5 {[%emt 0:01:06]} Nd7 {[%emt 0:00:31]} 31. Nd3 {[%emt 0:01:06]} Rb6 {[%emt 0:00:01]} 32. Kg2 {[%emt 0:00:41]} Nb4 {[%emt 0:02:35]} 33. Nc5 {[%emt 0:00:16]} Nd5 {[%emt 0:00:15]} 34. Ne4 {[%emt 0:00:30]} Rb4 {[%emt 0:00:42]} 35. Kf3 {[%emt 0:01:47]} b5 {[%emt 0:01:08]} 36. Bd1 {[%emt 0:02:49]} f5 {[%emt 0:03:40]} 37. Nd2 {[%emt 0:00:05]} Kd6 {[%emt 0:00:04]} 38. Ra1 {[%emt 0:00:36]} N5b6 {[%emt 0:04:25]} 39. Ra2 {[%emt 0:00:28]} bxa4 {[%emt 0:00:18]} 40. bxa4 {[%emt 0:00:00]} c5 {[%emt 0:00:00]} 41. dxc5+ {[%emt 0:08:40]} Nxc5 {[%emt 0:00:05]} 42. Rca1 {[%emt 0:02:46]} e5 {[%emt 0:01:23]} 43. fxe5+ {[%emt 0:00:14]} Kxe5 {[%emt 0:00:02]} 44. Kg2 {[%emt 0:01:02]} Ne4 {[%emt 0:01:18]} 45. f4+ {[%emt 0:03:22]} Kf6 {[%emt 0:00:30]} 46. Kf3 {[%emt 0:08:55] Ke5 Kg2+ Kf6 Nxe4+ fxe4 Rc1} Rd8 {[%emt 0:35:54] Rc6+ Kg7 Rc7+ Kh6 Bg4 Nd5 Rd7 Nxe3+ Kg3 Rxd7 Bxd7 Rd4 Bc6 Nf5+ Kg4 e3 Re2 Rd2 Re1 Rxh2 Bd7 Rg2+ Kf3 Rg3+ Ke4 Nd6+ Kd5 Nb7 Kc6 Nd8+ Kb6 g5 fxg5+ Kxg5 Kxa5 Kf4 Kb6 Rg6+ Kc5 Kf3 Bb5 Ne6+ Kb4 Nf4 a5 e2 a6 Kf2 a7 Rg8 Rxe2+ Nxe2 Bc6 h5 a8=Q Rxa8 Bxa8} 47. h4 {[%emt 0:00:00] Kc4 h3 Bh1 Kg1 Bf3 Nf4} 0-1

[Event "5th EKA IIFL Investment 2019"]
[Site "Mumbai"]
[Date "2020.01.04"]
[Round "6.53"]
[White "Vatsal Singhania"]
[Black "Aakash Sharadchandra, Dalvi"]
[Result "1-0"]
[ECO "B85"]
[WhiteElo "2252"]
[BlackElo "2107"]
[Annotator "ChessBase"]
[PlyCount "55"]
[EventDate "2019.12.30"]
[EventType "swiss"]
[EventCountry "IND"]
[SourceTitle "playchess.com"]
[Source "ChessBase"]
[SourceQuality "1"]
[TimeControl "40/5400+30:1800+30"]

1. e4 c5 2. Nf3 d6 3. d4 cxd4 4. Nxd4 Nf6 5. Nc3 a6 6. Be2 e6 7. O-O Qc7 8. f4 b5 9. Bf3 Bb7 10. e5 dxe5 11. fxe5 Nfd7 12. Bxb7 Qxb7 13. Qh5 g6 14. Qh4 Bg7 15. Ne4 Bxe5 16. Nf3 Qb6+ 17. Kh1 Bg7 18. Bh6 O-O 19. Rad1 f6 20. Rd6 Qc7 21. Bxg7 Kxg7 22. Nd4 Kg8 23. Nxe6 Qc4 24. Rf2 Rf7 25. b3 Qc8 26. Nxf6+ Rxf6 27. Rxf6 Qxc2 28. Rf1 1-0

[Event "5th EKA IIFL Investment 2019"]
[Site "Mumbai"]
[Date "2020.01.04"]
[Round "6.54"]
[White "Kamdar Udit"]
[Black "Raahul V S"]
[Result "0-1"]
[ECO "D45"]
[WhiteElo "2107"]
[BlackElo "2252"]
[Annotator "NA"]
[PlyCount "62"]
[EventDate "2019.12.30"]
[EventType "swiss"]
[EventCountry "IND"]
[SourceTitle "playchess.com"]
[Source "ChessBase"]
[SourceQuality "1"]
[TimeControl "40/5400+30:1800+30"]

1. d4 Nf6 2. c4 c6 3. Nc3 d5 4. Nf3 e6 5. e3 Bd6 6. Qc2 Nbd7 7. b3 O-O 8. Bd3 b6 9. O-O Ba6 10. Bb2 Rc8 11. Rac1 Re8 12. e4 dxc4 13. bxc4 e5 14. d5 Nc5 15. dxc6 Rxc6 16. Nb5 Bb8 17. Rfd1 Qc8 18. Nd2 Nh5 19. Bf1 Nf4 20. Nb1 Rg6 21. f3 Nxe4 22. fxe4 Qc5+ 23. Kh1 Nh3 24. Nd4 exd4 25. Bxd4 Qc7 26. g3 Ng5 27. Bg2 Nxe4 28. Re1 f5 29. Nc3 Bb7 30. Nd5 Bxd5 31. cxd5 Nxg3+ {Red1} 0-1

[Event "5th EKA IIFL Investment 2019"]
[Site "Mumbai"]
[Date "2020.01.04"]
[Round "6.55"]
[White "Sapaev, Maksad"]
[Black "Parnali, S Dharia"]
[Result "0-1"]
[ECO "C78"]
[WhiteElo "2250"]
[BlackElo "2102"]
[Annotator "ChessBase"]
[PlyCount "164"]
[EventDate "2019.12.30"]
[EventType "swiss"]
[EventCountry "IND"]
[SourceTitle "playchess.com"]
[Source "ChessBase"]
[SourceQuality "1"]
[TimeControl "40/5400+30:1800+30"]

1. e4 e5 2. Nf3 Nc6 3. Bb5 a6 4. Ba4 Nf6 5. O-O b5 6. Bb3 Bc5 7. Nxe5 Nxe5 8. d4 Bxd4 9. Qxd4 d6 10. c3 O-O 11. Bg5 h6 12. Bh4 c5 13. Qd1 Ng6 14. Bxf6 Qxf6 15. Nd2 Nf4 16. Qf3 Qg5 17. Kh1 c4 18. Bc2 Nxg2 19. Rg1 Nh4 20. Rxg5 Nxf3 21. Rd5 Bg4 22. h3 Nxd2 23. hxg4 Nf3 24. Kg2 Ne5 25. Kg3 Rfd8 26. Rad1 Kf8 27. f4 Nd3 28. Bxd3 cxd3 29. R1xd3 Ke7 30. R3d4 Rab8 31. Kf3 f6 32. Ke3 Rb6 33. Kd2 Rc8 34. a3 g5 35. e5 fxe5 36. fxe5 dxe5 37. Rxe5+ Re6 38. Rde4 Rxe5 39. Rxe5+ Kf6 40. Rf5+ Kg6 41. Rd5 Rc6 42. Rd8 Kf6 43. Ke3 Ke5 44. Rh8 Kd5 45. Kd3 Ke5 46. Rd8 Kf4 47. Rd4+ Kf3 48. a4 bxa4 49. Rxa4 h5 50. gxh5 g4 51. Ra5 g3 52. Rg5 Rd6+ 53. Kc4 g2 54. b4 Rh6 55. b5 Rxh5 56. Rxh5 g1=Q 57. Rd5 Qf1+ 58. Kd4 Qf2+ 59. Kc4 Qe2+ 60. Kb4 a5+ 61. Kc5 Qe7+ 62. Kc4 Qc7+ 63. Rc5 Qf7+ 64. Kd4 a4 65. Rc6 Qa7+ 66. b6 Qd7+ 67. Kc5 Qe7+ 68. Kb5 Qd7 69. Kc5 a3 70. Rc7 Qf5+ 71. Kb4 a2 72. Ra7 Qb1+ 73. Kc5 a1=Q 74. Rxa1 Qxa1 75. c4 Qa8 76. Kd6 Qb8+ 77. Kc6 Ke4 78. b7 Ke5 79. c5 Ke6 80. Kb6 Kd5 81. c6 Kd6 82. Kb5 Qa7 0-1

[Event "5th EKA IIFL Investment 2019"]
[Site "Mumbai"]
[Date "2020.01.04"]
[Round "6.56"]
[White "Panesar Vedant"]
[Black "Tarini Goyal"]
[Result "1/2-1/2"]
[ECO "B38"]
[WhiteElo "2247"]
[BlackElo "2098"]
[Annotator "ChessBase"]
[PlyCount "80"]
[EventDate "2019.12.30"]
[EventType "swiss"]
[EventCountry "IND"]
[SourceTitle "playchess.com"]
[Source "ChessBase"]
[SourceQuality "1"]
[TimeControl "40/5400+30:1800+30"]

1. e4 {[%emt 0:02:25]} c5 {[%emt 0:00:00]} 2. Nf3 {[%emt 0:01:13]} Nc6 {[%emt 0:00:00]} 3. d4 {[%emt 0:00:08]} cxd4 {[%emt 0:00:02]} 4. Nxd4 {[%emt 0:00:03]} g6 {[%emt 0:00:09]} 5. c4 {[%emt 0:00:09]} Bg7 {[%emt 0:00:06]} 6. Be3 {[%emt 0:00:05]} Nf6 {[%emt 0:00:05]} 7. Nc3 {[%emt 0:00:03]} O-O {[%emt 0:00:10]} 8. f3 {[%emt 0:01:02]} Qb6 {[%emt 0:10:35]} 9. Na4 {[%emt 0:14:04]} Qa5+ {[%emt 0:01:21]} 10. Bd2 {[%emt 0:00:30]} Qd8 {[%emt 0:01:57]} 11. Be3 {[%emt 0:03:14]} Qa5+ {[%emt 0:03:13]} 12. Bd2 {[%emt 0:00:06]} Qd8 {[%emt 0:00:07]} 13. Bc3 {[%emt 0:09:16]} d6 {[%emt 0:02:11]} 14. Nxc6 {[%emt 0:05:55]} bxc6 {[%emt 0:00:09]} 15. c5 {[%emt 0:02:14]} d5 {[%emt 0:17:41]} 16. e5 {[%emt 0:07:08]} Ne8 {[%emt 0:03:06]} 17. Qd2 {[%emt 0:20:46]} Qc7 {[%emt 0:00:40]} 18. f4 {[%emt 0:00:10]} f6 {[%emt 0:00:15]} 19. exf6 {[%emt 0:00:33]} Bxf6 {[%emt 0:05:03]} 20. g3 {[%emt 0:00:28]} e5 {[%emt 0:06:35]} 21. fxe5 {[%emt 0:00:12]} Bxe5 {[%emt 0:00:15]} 22. O-O-O {[%emt 0:00:53]} Bf5 {[%emt 0:02:08]} 23. Bd3 {[%emt 0:02:16]} Ng7 {[%emt 0:00:15]} 24. Bxe5 {[%emt 0:01:58]} Qxe5 {[%emt 0:00:07]} 25. Rhe1 {[%emt 0:00:36]} Qd4 {[%emt 0:07:40]} 26. Qc2 {[%emt 0:02:38]} Qb4 {[%emt 0:03:02]} 27. Bxf5 {[%emt 0:01:50]} Rxf5 {[%emt 0:03:51]} 28. Re7 {[%emt 0:02:44]} Raf8 {[%emt 0:21:14]} 29. Qc3 {[%emt 0:02:20]} Qxc3+ {[%emt 0:00:31]} 30. Nxc3 {[%emt 0:00:02]} R8f7 {[%emt 0:03:49]} 31. Rde1 {[%emt 0:00:59]} Rf2 {[%emt 0:00:51]} 32. R7e2 {[%emt 0:01:45]} Rxe2 {[%emt 0:02:19]} 33. Rxe2 {[%emt 0:00:01]} Rf1+ {[%emt 0:00:20]} 34. Kd2 {[%emt 0:00:34]} Kf7 {[%emt 0:00:30]} 35. b4 {[%emt 0:00:23]} Ne6 {[%emt 0:00:46]} 36. a4 {[%emt 0:04:29]} Nd4 {[%emt 0:01:52]} 37. Rg2 {[%emt 0:01:07]} a6 {[%emt 0:01:09]} 38. Kd3 {[%emt 0:02:18]} Ne6 {[%emt 0:00:25]} 39. Re2 {[%emt 0:01:05]} Rf3+ {[%emt 0:03:29]} 40. Kd2 {[%emt 0:00:00]} Nd4 {[%emt 0:00:00]} 1/2-1/2

[Event "5th EKA IIFL Investment 2019"]
[Site "Mumbai"]
[Date "2020.01.04"]
[Round "6.57"]
[White "Kumar, Gaurav"]
[Black "Wagh Suyog"]
[Result "1/2-1/2"]
[ECO "B15"]
[WhiteElo "2075"]
[BlackElo "2219"]
[Annotator "ChessBase"]
[PlyCount "137"]
[EventDate "2019.12.30"]
[EventType "swiss"]
[EventCountry "IND"]
[SourceTitle "playchess.com"]
[Source "ChessBase"]
[SourceQuality "1"]
[TimeControl "40/5400+30:1800+30"]

1. e4 c6 2. d4 d5 3. Nd2 dxe4 4. Nxe4 Nf6 5. Nxf6+ exf6 6. c3 Bd6 7. Qc2 O-O 8. Bd3 Re8+ 9. Ne2 h5 10. Be3 Nd7 11. Ng3 Nb6 12. Nxh5 Nd5 13. O-O-O Rxe3 14. fxe3 Nxe3 15. Qe2 Nxd1 16. Rxd1 g6 17. Ng3 f5 18. Bc4 Bd7 19. Rf1 Qh4 20. Ne4 Bf8 21. Nc5 Re8 22. Qf2 Qxf2 23. Rxf2 Bc8 24. Re2 Rxe2 25. Bxe2 Bxc5 26. dxc5 Kg7 27. a4 Kf6 28. a5 a6 29. Kd2 Ke5 30. g3 Ke4 31. Bd1 Be6 32. Ke2 f4 33. Bc2+ Ke5 34. gxf4+ Kxf4 35. Kf2 g5 36. b4 Bc4 37. Bb1 g4 38. Bc2 f5 39. Bb1 Kg5 40. Bc2 Kf4 41. Bb1 Ke5 42. Kg3 Be6 43. Bc2 f4+ 44. Kf2 Bf5 45. Bd1 Kf6 46. Be2 Kg5 47. Bc4 Kh4 48. Bf1 Be4 49. Bc4 g3+ 50. hxg3+ fxg3+ 51. Kg1 Bf5 52. Be2 Kg5 53. Bf3 Kf4 54. Bg2 Ke3 55. b5 axb5 56. a6 bxa6 57. Bxc6 Bc8 58. Be8 Kd2 59. c6 a5 60. Bd7 Ba6 61. c7 Kxc3 62. Bxb5 Bc8 63. Kg2 Kb4 64. Be8 a4 65. Bxa4 Kxa4 66. Kxg3 Kb5 67. Kf4 Kc6 68. Ke5 Kxc7 69. Ke4 1/2-1/2

[Event "5th EKA IIFL Investment 2019"]
[Site "Mumbai"]
[Date "2020.01.04"]
[Round "6.58"]
[White "Kavinda, Akila"]
[Black "Ziatdinov, Raset"]
[Result "1-0"]
[ECO "A46"]
[WhiteElo "2022"]
[BlackElo "2204"]
[Annotator "ChessBase"]
[PlyCount "67"]
[EventDate "2019.12.30"]
[EventType "swiss"]
[EventCountry "IND"]
[SourceTitle "playchess.com"]
[Source "ChessBase"]
[SourceQuality "1"]
[TimeControl "40/5400+30:1800+30"]

1. d4 Nf6 2. Nf3 e6 3. c4 c5 4. g3 b6 5. Bg2 Bb7 6. O-O cxd4 7. Qxd4 Nc6 8. Qf4 d5 9. Rd1 Bd6 10. Qh4 Nb4 11. Nc3 Be7 12. Bg5 Qb8 13. a3 Na6 14. cxd5 exd5 15. Nd4 Qe5 16. Bf4 Qh5 17. Qxh5 Nxh5 18. Nxd5 Nxf4 19. gxf4 Bxd5 20. Bxd5 Rd8 21. Nc6 Rd6 22. Bc4 Nc5 23. Rxd6 Bxd6 24. Rd1 Be7 25. f3 a5 26. b4 axb4 27. axb4 Ne6 28. Bxe6 fxe6 29. Ra1 Bf8 30. Ra8+ Kd7 31. Ne5+ Kc7 32. Kg2 b5 33. Nf7 Rg8 34. Ng5 1-0